[Event "Titled Tuesday Blitz April 11 Early 2023"]
[White "Chernobay, Artem"]
[Black "Devaev, Alexander"]
[WhiteFideId "4167406"]
[BlackFideId "4169395"]
[WhiteElo "2474"]
[BlackElo "2204"]
[Result "1-0"]
[Round "11"]
[TimeControl "180+2"]
[Date "2023.04.11"]
[WhiteClock "0:00:50"]
[BlackClock "0:00:22"]

1. e4 {[%clk 0:02:59]}  c6 {[%clk 0:03:00]} 2. d4 {[%clk 0:02:58]}  d5 {[%clk 0:03:01]} 3. e5 {[%clk 0:02:57]}  Bf5 {[%clk 0:03:01]} 4. Nc3 {[%clk 0:02:57]}  Qb6 {[%clk 0:03:01]} 5. Na4 {[%clk 0:02:46]}  Qc7 {[%clk 0:03:00]} 6. Be2 {[%clk 0:02:37]}  e6 {[%clk 0:02:54]} 7. Nf3 {[%clk 0:02:32]}  Nd7 {[%clk 0:02:51]} 8. O-O {[%clk 0:02:28]}  Ne7 {[%clk 0:02:49]} 9. b3 {[%clk 0:02:28]}  h6 {[%clk 0:02:41]} 10. c4 {[%clk 0:02:24]}  Bg4 {[%clk 0:02:32]} 11. h3 {[%clk 0:02:15]}  Bxf3 {[%clk 0:02:32]} 12. Bxf3 {[%clk 0:02:16]}  Nb6 {[%clk 0:02:21]} 13. Nxb6 {[%clk 0:02:09]}  Qxb6 {[%clk 0:02:16]} 14. Ba3 {[%clk 0:02:05]}  Qa5 {[%clk 0:01:57]} 15. Bd6 {[%clk 0:01:58]}  Nf5 {[%clk 0:01:54]} 16. Bxf8 {[%clk 0:01:39]}  Rxf8 {[%clk 0:01:54]} 17. cxd5 {[%clk 0:01:39]}  cxd5 {[%clk 0:01:53]} 18. Bg4 {[%clk 0:01:15]}  Ne7 {[%clk 0:01:47]} 19. Rc1 {[%clk 0:01:10]}  Nc6 {[%clk 0:01:47]} 20. Qd3 {[%clk 0:01:04]}  g6 {[%clk 0:01:43]} 21. Rc5 {[%clk 0:00:56]}  Qb4 {[%clk 0:01:43]} 22. Rfc1 {[%clk 0:00:56]}  Kd7 {[%clk 0:01:12]} 23. Rb5 {[%clk 0:00:53]}  Qxd4 {[%clk 0:00:22]} 24. Rxd5+ {[%clk 0:00:50]} 1-0


[Site "https://www.chess.com"]

[Event "Titled Tuesday Blitz April 11 Early 2023"]
[White "Borgaonkar Akshay"]
[Black "Petukhov, Dmitry"]
[WhiteFideId "25639110"]
[BlackFideId "4142748"]
[WhiteElo "2063"]
[BlackElo "2311"]
[Result "0-1"]
[Round "11"]
[TimeControl "180+2"]
[Date "2023.04.11"]
[WhiteClock "0:00:11"]
[BlackClock "0:00:56"]

1. a3 {[%clk 0:02:55]}  h6 {[%clk 0:02:58]} 2. e4 {[%clk 0:02:42]}  d5 {[%clk 0:02:55]} 3. exd5 {[%clk 0:02:40]}  Qxd5 {[%clk 0:02:56]} 4. Nc3 {[%clk 0:02:40]}  Qd8 {[%clk 0:02:53]} 5. Nf3 {[%clk 0:02:40]}  Nc6 {[%clk 0:02:50]} 6. Bc4 {[%clk 0:02:40]}  Nf6 {[%clk 0:02:46]} 7. d4 {[%clk 0:02:40]}  e6 {[%clk 0:02:41]} 8. Bf4 {[%clk 0:02:38]}  Bd6 {[%clk 0:02:37]} 9. Ne5 {[%clk 0:02:20]}  O-O {[%clk 0:02:36]} 10. Nxc6 {[%clk 0:02:12]}  bxc6 {[%clk 0:02:37]} 11. Bg3 {[%clk 0:02:11]}  c5 {[%clk 0:02:33]} 12. dxc5 {[%clk 0:02:07]}  Bxc5 {[%clk 0:02:30]} 13. Qf3 {[%clk 0:02:06]}  Rb8 {[%clk 0:02:23]} 14. Rd1 {[%clk 0:02:05]}  Qe7 {[%clk 0:02:11]} 15. b4 {[%clk 0:02:05]}  Bb7 {[%clk 0:02:06]} 16. Qe2 {[%clk 0:01:56]}  Bb6 {[%clk 0:02:06]} 17. O-O {[%clk 0:01:52]}  a5 {[%clk 0:02:06]} 18. b5 {[%clk 0:01:34]}  Qxa3 {[%clk 0:02:03]} 19. Rd3 {[%clk 0:01:34]}  Qc5 {[%clk 0:01:58]} 20. Be5 {[%clk 0:01:16]}  Qxc4 {[%clk 0:01:50]} 21. Bxf6 {[%clk 0:01:16]}  Qf4 {[%clk 0:01:47]} 22. Be5 {[%clk 0:01:11]}  Qf5 {[%clk 0:01:47]} 23. Rg3 {[%clk 0:01:04]}  f6 {[%clk 0:01:40]} 24. Bf4 {[%clk 0:00:17]}  Qxf4 {[%clk 0:01:39]} 25. Qxe6+ {[%clk 0:00:18]}  Kh8 {[%clk 0:01:36]} 26. Qe7 {[%clk 0:00:18]}  Rg8 {[%clk 0:01:31]} 27. Ne2 {[%clk 0:00:19]}  Qd2 {[%clk 0:01:21]} 28. Rd3 {[%clk 0:00:14]}  Qxc2 {[%clk 0:01:14]} 29. Nf4 {[%clk 0:00:14]}  Rbe8 {[%clk 0:01:03]} 30. Qf7 {[%clk 0:00:11]}  Qxf2+ {[%clk 0:00:56]} 0-1


[Site "https://www.chess.com"]

[Event "Titled Tuesday Blitz April 11 Early 2023"]
[White "Leyva Rivera, Yunier"]
[Black "Mamedov, Edgar"]
[WhiteFideId "3505065"]
[BlackFideId "13739980"]
[WhiteElo "2430"]
[BlackElo "2330"]
[Result "1-0"]
[Round "11"]
[TimeControl "180+2"]
[Date "2023.04.11"]
[WhiteClock "0:00:16"]
[BlackClock "0:00:02"]

1. d4 {[%clk 0:02:53]}  d5 {[%clk 0:02:59]} 2. c4 {[%clk 0:02:52]}  c6 {[%clk 0:02:57]} 3. Nf3 {[%clk 0:02:51]}  Nf6 {[%clk 0:02:57]} 4. e3 {[%clk 0:02:51]}  e6 {[%clk 0:02:57]} 5. Nbd2 {[%clk 0:02:48]}  Nbd7 {[%clk 0:02:57]} 6. b3 {[%clk 0:02:47]}  Bd6 {[%clk 0:02:57]} 7. Bb2 {[%clk 0:02:47]}  O-O {[%clk 0:02:56]} 8. Bd3 {[%clk 0:02:47]}  b6 {[%clk 0:02:54]} 9. Ne5 {[%clk 0:02:37]}  Bb7 {[%clk 0:02:53]} 10. f4 {[%clk 0:02:37]}  c5 {[%clk 0:02:52]} 11. O-O {[%clk 0:02:34]}  cxd4 {[%clk 0:02:45]} 12. exd4 {[%clk 0:02:31]}  dxc4 {[%clk 0:02:40]} 13. Ndxc4 {[%clk 0:02:18]}  Be7 {[%clk 0:02:36]} 14. Qe2 {[%clk 0:01:54]}  b5 {[%clk 0:02:23]} 15. Ne3 {[%clk 0:01:43]}  a6 {[%clk 0:02:20]} 16. f5 {[%clk 0:01:43]}  Ne4 {[%clk 0:01:13]} 17. Nxd7 {[%clk 0:00:23]}  Qxd7 {[%clk 0:01:12]} 18. fxe6 {[%clk 0:00:23]}  fxe6 {[%clk 0:00:58]} 19. Qg4 {[%clk 0:00:22]}  Nf6 {[%clk 0:00:48]} 20. Qh3 {[%clk 0:00:22]}  Bc5 {[%clk 0:00:37]} 21. Kh1 {[%clk 0:00:16]}  Bxd4 {[%clk 0:00:36]} 22. Rad1 {[%clk 0:00:16]}  e5 {[%clk 0:00:32]} 23. Bxh7+ {[%clk 0:00:16]}  Nxh7 {[%clk 0:00:15]} 24. Qxd7 {[%clk 0:00:16]}  Rab8 {[%clk 0:00:10]} 25. Bxd4 {[%clk 0:00:15]}  exd4 {[%clk 0:00:08]} 26. Rxf8+ {[%clk 0:00:15]}  Nxf8 {[%clk 0:00:07]} 27. Qxd4 {[%clk 0:00:16]}  Ne6 {[%clk 0:00:05]} 28. Qe5 {[%clk 0:00:16]}  Re8 {[%clk 0:00:03]} 29. Nf5 {[%clk 0:00:17]}  Kf7 {[%clk 0:00:02]} 30. Kg1 {[%clk 0:00:16]} 1-0


[Site "https://www.chess.com"]

[Event "Titled Tuesday Blitz April 11 Early 2023"]
[White "Rakhmatullaev, Almas"]
[Black "Jumanov, Elbek"]
[WhiteFideId "14205793"]
[BlackFideId "14202905"]
[WhiteElo "2221"]
[BlackElo "2055"]
[Result "1-0"]
[Round "11"]
[TimeControl "180+2"]
[Date "2023.04.11"]
[WhiteClock "0:00:06"]
[BlackClock "0:00:01"]

1. e4 {[%clk 0:03:00]}  c5 {[%clk 0:02:59]} 2. c3 {[%clk 0:02:58]}  d5 {[%clk 0:02:49]} 3. exd5 {[%clk 0:02:58]}  Qxd5 {[%clk 0:02:50]} 4. d4 {[%clk 0:02:58]}  Nc6 {[%clk 0:02:50]} 5. Nf3 {[%clk 0:02:58]}  Bg4 {[%clk 0:02:51]} 6. Be2 {[%clk 0:02:58]}  e6 {[%clk 0:02:50]} 7. h3 {[%clk 0:02:57]}  Bh5 {[%clk 0:02:50]} 8. O-O {[%clk 0:02:56]}  cxd4 {[%clk 0:02:49]} 9. cxd4 {[%clk 0:02:57]}  Nf6 {[%clk 0:02:48]} 10. Nc3 {[%clk 0:02:58]}  Qa5 {[%clk 0:02:47]} 11. Be3 {[%clk 0:02:50]}  Be7 {[%clk 0:02:47]} 12. Nd2 {[%clk 0:02:46]}  Bxe2 {[%clk 0:02:45]} 13. Qxe2 {[%clk 0:02:46]}  O-O {[%clk 0:02:45]} 14. Nb3 {[%clk 0:02:46]}  Qd8 {[%clk 0:02:35]} 15. Rfd1 {[%clk 0:02:44]}  Nd5 {[%clk 0:02:33]} 16. Rac1 {[%clk 0:02:43]}  Rc8 {[%clk 0:02:30]} 17. Nc5 {[%clk 0:02:40]}  b6 {[%clk 0:02:25]} 18. Nd3 {[%clk 0:02:34]}  Bf6 {[%clk 0:02:22]} 19. Qg4 {[%clk 0:02:30]}  Nce7 {[%clk 0:02:13]} 20. Ne4 {[%clk 0:02:27]}  Rxc1 {[%clk 0:02:02]} 21. Rxc1 {[%clk 0:02:28]}  Nf5 {[%clk 0:02:02]} 22. Nxf6+ {[%clk 0:02:09]}  Qxf6 {[%clk 0:02:02]} 23. Re1 {[%clk 0:02:07]}  Rc8 {[%clk 0:01:59]} 24. Ne5 {[%clk 0:02:01]}  Nfxe3 {[%clk 0:01:40]} 25. fxe3 {[%clk 0:02:00]}  Rc2 {[%clk 0:01:40]} 26. Qg3 {[%clk 0:01:56]}  h5 {[%clk 0:01:32]} 27. Rf1 {[%clk 0:01:54]}  h4 {[%clk 0:01:24]} 28. Qe1 {[%clk 0:01:02]}  Qg5 {[%clk 0:01:14]} 29. Ng4 {[%clk 0:00:54]}  f5 {[%clk 0:01:11]} 30. Qd1 {[%clk 0:00:50]}  Rxb2 {[%clk 0:00:55]} 31. Qc1 {[%clk 0:00:49]}  Rxa2 {[%clk 0:00:48]} 32. Qb1 {[%clk 0:00:41]}  Rd2 {[%clk 0:00:40]} 33. Qc1 {[%clk 0:00:38]}  Ra2 {[%clk 0:00:32]} 34. Qb1 {[%clk 0:00:36]}  Nc3 {[%clk 0:00:31]} 35. Qb3 {[%clk 0:00:32]}  fxg4 {[%clk 0:00:29]} 36. Qxe6+ {[%clk 0:00:26]}  Kh7 {[%clk 0:00:26]} 37. hxg4 {[%clk 0:00:19]}  h3 {[%clk 0:00:20]} 38. Rf3 {[%clk 0:00:09]}  Rxg2+ {[%clk 0:00:17]} 39. Kh1 {[%clk 0:00:10]}  Qh6 {[%clk 0:00:05]} 40. Qf5+ {[%clk 0:00:07]}  Kg8 {[%clk 0:00:05]} 41. Qc8+ {[%clk 0:00:06]}  Kh7 {[%clk 0:00:05]} 42. g5 {[%clk 0:00:06]}  Rxg5 {[%clk 0:00:03]} 43. Qxc3 {[%clk 0:00:06]}  h2 {[%clk 0:00:02]} 44. Qc2+ {[%clk 0:00:06]}  Qg6 {[%clk 0:00:01]} 45. Rh3+ {[%clk 0:00:06]}  Rh5 {[%clk 0:00:02]} 46. Rxh5+ {[%clk 0:00:06]}  Kg8 {[%clk 0:00:01]} 47. Qxg6 {[%clk 0:00:06]} 1-0


[Site "https://www.chess.com"]

[Event "Titled Tuesday Blitz April 11 Early 2023"]
[White "Vaibhav, Suri"]
[Black "Martic, Ivan"]
[WhiteFideId "5045185"]
[BlackFideId "929301"]
[WhiteElo "2510"]
[BlackElo "2360"]
[Result "1-0"]
[Round "11"]
[TimeControl "180+2"]
[Date "2023.04.11"]
[WhiteClock "0:00:59"]
[BlackClock "0:00:01"]

1. d4 {[%clk 0:02:54]}  d5 {[%clk 0:02:58]} 2. Nf3 {[%clk 0:02:52]}  Nf6 {[%clk 0:02:58]} 3. Bf4 {[%clk 0:02:53]}  c5 {[%clk 0:02:56]} 4. e3 {[%clk 0:02:53]}  Nc6 {[%clk 0:02:52]} 5. Nc3 {[%clk 0:02:48]}  cxd4 {[%clk 0:02:52]} 6. exd4 {[%clk 0:02:48]}  a6 {[%clk 0:02:50]} 7. Ne5 {[%clk 0:02:48]}  g6 {[%clk 0:02:43]} 8. Nxc6 {[%clk 0:02:40]}  bxc6 {[%clk 0:02:44]} 9. Na4 {[%clk 0:02:41]}  Bg7 {[%clk 0:02:43]} 10. Be2 {[%clk 0:02:39]}  O-O {[%clk 0:02:37]} 11. O-O {[%clk 0:02:39]}  Nd7 {[%clk 0:02:32]} 12. Re1 {[%clk 0:02:35]}  e5 {[%clk 0:02:30]} 13. dxe5 {[%clk 0:02:34]}  Nxe5 {[%clk 0:02:31]} 14. Be3 {[%clk 0:02:29]}  Re8 {[%clk 0:02:25]} 15. Bd4 {[%clk 0:02:28]}  Qh4 {[%clk 0:02:21]} 16. c3 {[%clk 0:02:27]}  Bf5 {[%clk 0:01:41]} 17. Qd2 {[%clk 0:02:14]}  Bh6 {[%clk 0:01:35]} 18. Qd1 {[%clk 0:02:06]}  Ng4 {[%clk 0:00:36]} 19. Bxg4 {[%clk 0:02:05]}  Bxg4 {[%clk 0:00:35]} 20. Qd3 {[%clk 0:02:02]}  Bf5 {[%clk 0:00:30]} 21. Qg3 {[%clk 0:01:56]}  Qxg3 {[%clk 0:00:21]} 22. hxg3 {[%clk 0:01:57]}  a5 {[%clk 0:00:19]} 23. f3 {[%clk 0:01:54]}  Bc2 {[%clk 0:00:17]} 24. b3 {[%clk 0:01:54]}  Bd3 {[%clk 0:00:16]} 25. Rad1 {[%clk 0:01:46]}  Bb5 {[%clk 0:00:14]} 26. Nb6 {[%clk 0:01:45]}  Rad8 {[%clk 0:00:14]} 27. Kf2 {[%clk 0:01:40]}  f5 {[%clk 0:00:09]} 28. a4 {[%clk 0:01:25]}  Ba6 {[%clk 0:00:08]} 29. b4 {[%clk 0:01:26]}  axb4 {[%clk 0:00:08]} 30. cxb4 {[%clk 0:01:27]}  Kf7 {[%clk 0:00:07]} 31. a5 {[%clk 0:01:12]}  Rxe1 {[%clk 0:00:07]} 32. Rxe1 {[%clk 0:01:09]}  Bd2 {[%clk 0:00:07]} 33. Rb1 {[%clk 0:01:08]}  Re8 {[%clk 0:00:07]} 34. Nd7 {[%clk 0:01:07]}  Re2+ {[%clk 0:00:06]} 35. Kg1 {[%clk 0:01:07]}  Bd3 {[%clk 0:00:06]} 36. Rb2 {[%clk 0:01:00]}  Re1+ {[%clk 0:00:04]} 37. Kh2 {[%clk 0:00:59]}  Bg5 {[%clk 0:00:01]} 38. Ne5+ {[%clk 0:00:59]} 1-0


[Site "https://www.chess.com"]

[Event "Titled Tuesday Blitz April 11 Early 2023"]
[White "Samunenkov, Ihor"]
[Black "Pham, Le Thao Nguyen"]
[WhiteFideId "14187086"]
[BlackFideId "12401226"]
[WhiteElo "2457"]
[BlackElo "2286"]
[Result "1-0"]
[Round "11"]
[TimeControl "180+2"]
[Date "2023.04.11"]
[WhiteClock "0:00:11"]
[BlackClock "0:00:03"]

1. e4 {[%clk 0:03:00]}  c6 {[%clk 0:02:52]} 2. d4 {[%clk 0:02:58]}  d5 {[%clk 0:02:52]} 3. e5 {[%clk 0:02:58]}  Bf5 {[%clk 0:02:52]} 4. Nf3 {[%clk 0:02:58]}  e6 {[%clk 0:02:52]} 5. Be2 {[%clk 0:02:58]}  Nd7 {[%clk 0:02:53]} 6. O-O {[%clk 0:02:58]}  h6 {[%clk 0:02:51]} 7. a4 {[%clk 0:02:48]}  Ne7 {[%clk 0:02:41]} 8. a5 {[%clk 0:02:47]}  a6 {[%clk 0:02:41]} 9. b4 {[%clk 0:02:47]}  g5 {[%clk 0:02:30]} 10. c3 {[%clk 0:02:40]}  Bg7 {[%clk 0:02:28]} 11. Bd3 {[%clk 0:02:12]}  O-O {[%clk 0:02:18]} 12. Re1 {[%clk 0:02:10]}  Ng6 {[%clk 0:01:40]} 13. Bxf5 {[%clk 0:02:02]}  exf5 {[%clk 0:01:39]} 14. Qd3 {[%clk 0:01:55]}  Ne7 {[%clk 0:01:32]} 15. Nbd2 {[%clk 0:01:46]}  Re8 {[%clk 0:01:31]} 16. Nf1 {[%clk 0:01:43]}  Nf8 {[%clk 0:01:31]} 17. Ng3 {[%clk 0:01:38]}  Qd7 {[%clk 0:01:30]} 18. h4 {[%clk 0:01:27]}  f4 {[%clk 0:01:05]} 19. Nh5 {[%clk 0:01:06]}  Qg4 {[%clk 0:01:00]} 20. Nxg7 {[%clk 0:00:57]}  Kxg7 {[%clk 0:01:00]} 21. hxg5 {[%clk 0:00:54]}  hxg5 {[%clk 0:01:00]} 22. Nh2 {[%clk 0:00:42]}  Qh5 {[%clk 0:00:28]} 23. f3 {[%clk 0:00:37]}  Nfg6 {[%clk 0:00:23]} 24. Ng4 {[%clk 0:00:37]}  Rh8 {[%clk 0:00:23]} 25. Bd2 {[%clk 0:00:36]}  Qh4 {[%clk 0:00:18]} 26. Rf1 {[%clk 0:00:27]}  Rh7 {[%clk 0:00:13]} 27. Be1 {[%clk 0:00:26]}  Qh5 {[%clk 0:00:11]} 28. Nf6 {[%clk 0:00:25]}  Qh2+ {[%clk 0:00:10]} 29. Kf2 {[%clk 0:00:22]}  Rh3 {[%clk 0:00:10]} 30. Ng4 {[%clk 0:00:16]}  Qg3+ {[%clk 0:00:07]} 31. Kg1 {[%clk 0:00:16]}  Qxg4 {[%clk 0:00:05]} 32. Qxg6+ {[%clk 0:00:12]}  Nxg6 {[%clk 0:00:04]} 33. fxg4 {[%clk 0:00:13]}  Rd3 {[%clk 0:00:05]} 34. Rf3 {[%clk 0:00:12]}  Rxf3 {[%clk 0:00:03]} 35. gxf3 {[%clk 0:00:13]}  Rh8 {[%clk 0:00:03]} 36. Rc1 {[%clk 0:00:11]} 1-0


[Site "https://www.chess.com"]

[Event "Titled Tuesday Blitz April 11 Early 2023"]
[White "Hambleton, Aman"]
[Black "Janaszak, Dawid"]
[WhiteFideId "2606577"]
[BlackFideId "1119206"]
[WhiteElo "2511"]
[BlackElo "2220"]
[Result "1-0"]
[Round "11"]
[TimeControl "180+2"]
[Date "2023.04.11"]
[WhiteClock "0:00:03"]
[BlackClock "0:00:03"]

1. d4 {[%clk 0:03:00]}  Nf6 {[%clk 0:02:59]} 2. Bf4 {[%clk 0:02:58]}  g6 {[%clk 0:02:57]} 3. Nc3 {[%clk 0:02:58]}  d5 {[%clk 0:02:56]} 4. e3 {[%clk 0:02:53]}  c6 {[%clk 0:02:55]} 5. Nf3 {[%clk 0:02:45]}  Bg4 {[%clk 0:02:55]} 6. Be2 {[%clk 0:02:44]}  Bxf3 {[%clk 0:02:53]} 7. Bxf3 {[%clk 0:02:45]}  Nbd7 {[%clk 0:02:53]} 8. O-O {[%clk 0:02:37]}  Bg7 {[%clk 0:02:52]} 9. e4 {[%clk 0:02:37]}  dxe4 {[%clk 0:02:51]} 10. Nxe4 {[%clk 0:02:38]}  Nxe4 {[%clk 0:02:51]} 11. Bxe4 {[%clk 0:02:39]}  O-O {[%clk 0:02:49]} 12. c3 {[%clk 0:02:35]}  e5 {[%clk 0:02:49]} 13. dxe5 {[%clk 0:02:34]}  Nxe5 {[%clk 0:02:46]} 14. Qb3 {[%clk 0:02:07]}  Qh4 {[%clk 0:02:39]} 15. g3 {[%clk 0:02:06]}  Qe7 {[%clk 0:02:29]} 16. Rfe1 {[%clk 0:02:04]}  Rfe8 {[%clk 0:02:24]} 17. Kg2 {[%clk 0:01:08]}  Qc7 {[%clk 0:02:00]} 18. Rad1 {[%clk 0:00:58]}  Re7 {[%clk 0:02:00]} 19. Re2 {[%clk 0:00:41]}  Rae8 {[%clk 0:02:00]} 20. Red2 {[%clk 0:00:36]}  Qc8 {[%clk 0:01:49]} 21. Bg5 {[%clk 0:00:20]}  Qg4 {[%clk 0:01:31]} 22. f4 {[%clk 0:00:16]}  Nc4 {[%clk 0:01:10]} 23. Bxe7 {[%clk 0:00:10]}  Ne3+ {[%clk 0:01:10]} 24. Kf2 {[%clk 0:00:10]}  Nxd1+ {[%clk 0:01:09]} 25. Qxd1 {[%clk 0:00:10]}  Qxd1 {[%clk 0:01:09]} 26. Rxd1 {[%clk 0:00:11]}  Rxe7 {[%clk 0:01:08]} 27. Rd8+ {[%clk 0:00:11]}  Bf8 {[%clk 0:01:08]} 28. Kf3 {[%clk 0:00:12]}  Kg7 {[%clk 0:01:06]} 29. Ra8 {[%clk 0:00:10]}  a6 {[%clk 0:00:58]} 30. f5 {[%clk 0:00:09]}  f6 {[%clk 0:00:46]} 31. fxg6 {[%clk 0:00:06]}  hxg6 {[%clk 0:00:47]} 32. Bxg6 {[%clk 0:00:06]}  Re5 {[%clk 0:00:37]} 33. Bd3 {[%clk 0:00:03]}  Rd5 {[%clk 0:00:35]} 34. Ke2 {[%clk 0:00:03]}  Rh5 {[%clk 0:00:32]} 35. h4 {[%clk 0:00:03]}  Bd6 {[%clk 0:00:29]} 36. Kf3 {[%clk 0:00:03]}  Rd5 {[%clk 0:00:28]} 37. Be4 {[%clk 0:00:02]}  Rb5 {[%clk 0:00:23]} 38. b4 {[%clk 0:00:01]}  Be5 {[%clk 0:00:19]} 39. a4 {[%clk 0:00:01]}  Rb6 {[%clk 0:00:18]} 40. a5 {[%clk 0:00:01]}  Rb5 {[%clk 0:00:18]} 41. Bd3 {[%clk 0:00:02]}  Rd5 {[%clk 0:00:19]} 42. Be4 {[%clk 0:00:02]}  Rd2 {[%clk 0:00:16]} 43. Ra7 {[%clk 0:00:02]}  Bxc3 {[%clk 0:00:12]} 44. Rxb7+ {[%clk 0:00:02]}  Kf8 {[%clk 0:00:13]} 45. Bxc6 {[%clk 0:00:02]}  Rb2 {[%clk 0:00:11]} 46. b5 {[%clk 0:00:02]}  f5 {[%clk 0:00:09]} 47. bxa6 {[%clk 0:00:02]}  Rxb7 {[%clk 0:00:03]} 48. axb7 {[%clk 0:00:03]}  Be5 {[%clk 0:00:03]} 49. a6 {[%clk 0:00:03]}  Bb8 {[%clk 0:00:03]} 50. Bd7 {[%clk 0:00:03]} 1-0


[Site "https://www.chess.com"]

[Event "Titled Tuesday Blitz April 11 Early 2023"]
[White "Fishchuk, Vladyslav"]
[Black "Eynullayev, Atilla"]
[WhiteFideId "34122117"]
[BlackFideId "13413570"]
[WhiteElo "2082"]
[BlackElo "2181"]
[Result "0-1"]
[Round "11"]
[TimeControl "180+2"]
[Date "2023.04.11"]
[WhiteClock "0:00:23"]
[BlackClock "0:01:42"]

1. d4 {[%clk 0:03:00]}  Nf6 {[%clk 0:02:56]} 2. Nc3 {[%clk 0:03:01]}  d5 {[%clk 0:02:56]} 3. Bf4 {[%clk 0:03:02]}  e6 {[%clk 0:02:57]} 4. Nb5 {[%clk 0:03:00]}  Bb4+ {[%clk 0:02:57]} 5. c3 {[%clk 0:03:00]}  Ba5 {[%clk 0:02:58]} 6. e3 {[%clk 0:03:00]}  a6 {[%clk 0:02:58]} 7. Na3 {[%clk 0:03:00]}  Nbd7 {[%clk 0:02:58]} 8. Nf3 {[%clk 0:03:01]}  O-O {[%clk 0:02:58]} 9. Bd3 {[%clk 0:03:01]}  c5 {[%clk 0:02:59]} 10. O-O {[%clk 0:02:59]}  Bc7 {[%clk 0:03:00]} 11. Ne5 {[%clk 0:02:57]}  Nxe5 {[%clk 0:02:51]} 12. dxe5 {[%clk 0:02:57]}  Nd7 {[%clk 0:02:51]} 13. Qh5 {[%clk 0:02:57]}  g6 {[%clk 0:02:51]} 14. Qf3 {[%clk 0:02:43]}  Bxe5 {[%clk 0:02:48]} 15. Nc2 {[%clk 0:02:39]}  Bg7 {[%clk 0:02:45]} 16. h4 {[%clk 0:02:38]}  e5 {[%clk 0:02:39]} 17. Bg5 {[%clk 0:02:15]}  f6 {[%clk 0:02:39]} 18. Qxd5+ {[%clk 0:02:15]}  Kh8 {[%clk 0:02:40]} 19. h5 {[%clk 0:02:00]}  fxg5 {[%clk 0:02:40]} 20. hxg6 {[%clk 0:02:00]}  Nf6 {[%clk 0:02:41]} 21. Qxd8 {[%clk 0:00:58]}  Rxd8 {[%clk 0:02:40]} 22. Rad1 {[%clk 0:00:58]}  e4 {[%clk 0:02:22]} 23. Bxe4 {[%clk 0:00:55]}  Rxd1 {[%clk 0:02:17]} 24. Rxd1 {[%clk 0:00:56]}  Bg4 {[%clk 0:02:17]} 25. Bf3 {[%clk 0:00:47]}  Bxf3 {[%clk 0:02:17]} 26. gxf3 {[%clk 0:00:48]}  hxg6 {[%clk 0:02:18]} 27. e4 {[%clk 0:00:47]}  Re8 {[%clk 0:02:08]} 28. Rd6 {[%clk 0:00:44]}  Kg8 {[%clk 0:01:59]} 29. Ne3 {[%clk 0:00:44]}  Kf7 {[%clk 0:01:58]} 30. a4 {[%clk 0:00:40]}  Bf8 {[%clk 0:01:53]} 31. Rb6 {[%clk 0:00:37]}  Rb8 {[%clk 0:01:47]} 32. Kf1 {[%clk 0:00:28]}  Nd7 {[%clk 0:01:45]} 33. Rb3 {[%clk 0:00:28]}  b5 {[%clk 0:01:43]} 34. Nd5 {[%clk 0:00:28]}  c4 {[%clk 0:01:42]} 35. Rb4 {[%clk 0:00:23]}  Bxb4 {[%clk 0:01:42]} 0-1


[Site "https://www.chess.com"]

[Event "Titled Tuesday Blitz April 11 Early 2023"]
[White "Kozin, Yuri"]
[Black "Weetik, Vjacheslav"]
[WhiteFideId "4129920"]
[BlackFideId "4153472"]
[WhiteElo "2555"]
[BlackElo "2469"]
[Result "0-1"]
[Round "11"]
[TimeControl "180+2"]
[Date "2023.04.11"]
[WhiteClock "0:00:13"]
[BlackClock "0:01:07"]

1. e4 {[%clk 0:03:00]}  c5 {[%clk 0:03:00]} 2. Nf3 {[%clk 0:03:01]}  Nc6 {[%clk 0:03:00]} 3. d4 {[%clk 0:03:01]}  cxd4 {[%clk 0:03:01]} 4. Nxd4 {[%clk 0:03:01]}  g6 {[%clk 0:03:02]} 5. Nc3 {[%clk 0:03:02]}  Bg7 {[%clk 0:03:02]} 6. Be3 {[%clk 0:03:02]}  Nf6 {[%clk 0:03:03]} 7. Bc4 {[%clk 0:03:03]}  O-O {[%clk 0:03:03]} 8. Bb3 {[%clk 0:03:01]}  Qa5 {[%clk 0:03:03]} 9. O-O {[%clk 0:03:00]}  d6 {[%clk 0:03:03]} 10. h3 {[%clk 0:03:01]}  Bd7 {[%clk 0:03:03]} 11. Nd5 {[%clk 0:02:55]}  Nxd5 {[%clk 0:03:01]} 12. exd5 {[%clk 0:02:47]}  Nxd4 {[%clk 0:02:51]} 13. Bxd4 {[%clk 0:02:47]}  Bf6 {[%clk 0:02:51]} 14. Bxf6 {[%clk 0:02:30]}  exf6 {[%clk 0:02:51]} 15. Qd4 {[%clk 0:02:26]}  Kg7 {[%clk 0:02:50]} 16. Rfe1 {[%clk 0:02:23]}  Rfe8 {[%clk 0:02:48]} 17. c3 {[%clk 0:02:23]}  Qc5 {[%clk 0:02:21]} 18. Qd2 {[%clk 0:02:01]}  Re5 {[%clk 0:02:18]} 19. Kh1 {[%clk 0:01:49]}  Rae8 {[%clk 0:02:05]} 20. f4 {[%clk 0:01:36]}  Re4 {[%clk 0:01:55]} 21. Rxe4 {[%clk 0:01:24]}  Rxe4 {[%clk 0:01:55]} 22. Re1 {[%clk 0:01:24]}  Bf5 {[%clk 0:01:55]} 23. Rxe4 {[%clk 0:01:12]}  Bxe4 {[%clk 0:01:55]} 24. Kh2 {[%clk 0:01:12]}  h5 {[%clk 0:01:45]} 25. a3 {[%clk 0:01:11]}  h4 {[%clk 0:01:36]} 26. Ba2 {[%clk 0:01:11]}  Qb5 {[%clk 0:01:17]} 27. c4 {[%clk 0:00:46]}  Qa4 {[%clk 0:01:17]} 28. Qc3 {[%clk 0:00:32]}  Qd1 {[%clk 0:01:15]} 29. Qe3 {[%clk 0:00:20]}  Qc2 {[%clk 0:01:12]} 30. Qg1 {[%clk 0:00:18]}  Qxb2 {[%clk 0:01:11]} 31. c5 {[%clk 0:00:13]}  Qxa2 {[%clk 0:01:08]} 32. cxd6 {[%clk 0:00:13]}  Qxd5 {[%clk 0:01:07]} 0-1


[Site "https://www.chess.com"]